Cogmind - Beta 12 @@@ ROGUE MODE // 2023.04.26 @ 20:47:28 Player: Mr Goldstein Result: Destroyed by Z-Imprinter with Zionite Laser-M Performance ------------- Evolutions (3) 1500 Regions Visited (10) 2000 Robots Destroyed (0) 0 Value Destroyed (30) 30 Prototype IDs (24) 480 Alien Tech Used (0) 0 Bonus (1234) 1234 TOTAL SCORE: 5244 Bonus ------- Pacifist 634 Aligned with FarCom 300 Met Imprinter 300 Cogmind --------- Core Integrity 0/700 Matter 300/300 Energy 96/100 System Corruption 0% Temperature Cool (9) Movement Flying (34) Location -7/Deep Caves Parts ------- > --- POWER (2) -------- (None) > --- PROPULSION (6) --- Improved VTOL Module Xenon Bombardment Thruster > --- UTILITY (3) ------ Makeshift Hacking Suite Makeshift System Shield > --- WEAPON (2) ------- Makeshift Hammer Makeshift Axe > --- INVENTORY (5) ---- Deuterium Engine Micro Nuclear Core Machine Analyzer Machine Analyzer Field Lobotomy Kit (5) Peak State ------------ > --- POWER ------------ Backup Power III > --- PROPULSION ------- Improved VTOL Module Xenon Bombardment Thruster > --- UTILITY ---------- Reaction Control System Makeshift Hacking Suite Makeshift System Shield > --- WEAPON ----------- Makeshift Hammer Makeshift Axe > --- INVENTORY -------- Deuterium Engine Micro Nuclear Core Machine Analyzer Machine Analyzer Field Lobotomy Kit [Rating: 32] Favorites ----------- Power Backup Power III Engine Backup Power III Power Core Micro Nuclear Core Propulsion Xenon Bombardment Thruster Treads Light Treads Flight Unit Xenon Bombardment Thruster Utility System Shield Device Reaction Control System Processor Advanced Terrain Scan Processor Hackware System Shield Weapon Makeshift Axe Energy Gun Backup Laser III Launcher Mini Grenade Launcher Impact Weapon Makeshift Hammer Slashing Weapon Makeshift Axe Special Melee Weapon Improved Datajack Build | -11 -10 -10 -10 -9 -8 -7 -7 -7 -7 -7 ------- Run | Jun Mat Min Exi Min Mat Fac Low Low Zio Dee Slots Evolved 6 | . . . . . 4 2 . . . . Power 1 | . . . . . 1 . . . . . Propulsion 4 | . . . . . 3 1 . . . . Utility 1 | . . . . . . 1 . . . . Weapon . | . . . . . . . . . . . Parts Attached 18 | 2 . . . . 2 8 1 1 4 . Power 1 | . . . . . . 1 . . . . Engine . | . . . . . . . . . . . Core 1 | . . . . . . 1 . . . . Reactor . | . . . . . . . . . . . Propulsion 5 | 2 . . . . . 3 . . . . Treads 2 | 2 . . . . . . . . . . Leg . | . . . . . . . . . . . Wheel . | . . . . . . . . . . . Hover . | . . . . . . . . . . . Flight 3 | . . . . . . 3 . . . . Utility 8 | . . . . . 2 2 . 1 3 . Device 1 | . . . . . . . . . 1 . Storage . | . . . . . . . . . . . Processor 2 | . . . . . 1 1 . . . . Hackware 5 | . . . . . 1 1 . 1 2 . Protection . | . . . . . . . . . . . Artifact . | . . . . . . . . . . . Weapon 4 | . . . . . . 2 1 . 1 . Energy Gun . | . . . . . . . . . . . Energy Cannon . | . . . . . . . . . . . Ballistic Gun . | . . . . . . . . . . . Ballistic Cannon . | . . . . . . . . . . . Launcher 1 | . . . . . . 1 . . . . Special Weapon . | . . . . . . . . . . . Impact Weapon 1 | . . . . . . . . . 1 . Slashing Weapon 1 | . . . . . . . 1 . . . Piercing Weapon . | . . . . . . . . . . . Special Melee Weapon 1 | . . . . . . 1 . . . . Unidentified Prototypes 1 | . . . . . . 1 . . . . Parts Lost 9 | . . 2 . . . 4 . 1 . 2 Power 1 | . . . . . . . . . . 1 Propulsion 3 | . . 2 . . . 1 . . . . Utility 3 | . . . . . . 1 . 1 . 1 Weapon 2 | . . . . . . 2 . . . . Highest Loss Streak 2 | . . 2 . . . 2 . 1 . 2 To Critical Strikes 1 | . . 1 . . . . . . . . Average Slot Usage (%) 35 | . 28 18 . . 15 34 38 39 57 61 Engine 1 | . . . . . . . . . 5 7 Treads 1 | . 28 18 . . . . . . . . Flight 7 | . . . . . . 4 15 15 15 15 Device 1 | . . . . . . . . . 5 7 Processor 4 | . . . . . 8 6 7 7 1 . Hackware 10 | . . . . . 7 14 15 8 15 15 Launcher 1 | . . . . . . 5 . . . . Impact Weapon 1 | . . . . . . . . . 3 7 Slashing Weapon 2 | . . . . . . . . 7 7 7 Naked Turns 187 | . . 32 107 41 7 . . . . . Heaviest Build 9 | . . . . . . 2 3 3 9 9 Greatest Support 20 | 20 3 3 3 3 3 11 11 11 11 11 Greatest Overweight (x) . | . . . . . . . . . . . Average Overweight (x) . | . . . . . . . . . . . Largest Inventory Capacity 5 | 5 5 5 5 5 5 5 5 5 5 5 Average Capacity 5 | 5 5 5 5 5 5 5 5 5 5 5 Most Carried 5 | . . . 1 2 5 5 5 5 5 5 Average Carried 4 | . . . . 1 4 4 5 5 5 5 Final Capacity 5 | 5 5 5 5 5 5 5 5 5 5 5 Final Carried 5 | . . . 1 2 5 5 5 5 5 5 Class Distribution -------------------- 49% | Hacker-Mutant 33% | Mutant 16% | Derelict-Mutant Dominant Class ---------------- Mutant | -10/Materials Mutant | -10/Mines Mutant | -10/Exiles Mutant | -9/Mines Mutant | -8/Materials Hacker-Mutant | -7/Factory Hacker-Mutant | -7/Lower Caves Mutant | -7/Lower Caves Hacker-Mutant | -7/Zion Derelict-Mutant | -7/Deep Caves Resources | -11 -10 -10 -10 -9 -8 -7 -7 -7 -7 -7 ----------- Run | Jun Mat Min Exi Min Mat Fac Low Low Zio Dee Matter Collected 394 | 210 . . . . . 87 . 47 50 . Remotely . | . . . . . . . . . . . Salvage Created 9 | . . . . . . . . . . 9 Parts . | . . . . . . . . . . . Haulers Intercepted . | . . . . . . . . . . . Recyclers Shooed . | . . . . . . . . . . . Parts Field Recycled . | . . . . . . . . . . . Retrieved Matter . | . . . . . . . . . . . Parts Self-Destructed 8 | . . . . . . . . 8 . . Prevented . | . . . . . . . . . . . Kills | -11 -10 -10 -10 -9 -8 -7 -7 -7 -7 -7 ------- Run | Jun Mat Min Exi Min Mat Fac Low Low Zio Dee Combat Hostiles Destroyed . | . . . . . . . . . . . Classes Destroyed 1 | . . . . . . . . . . 1 Z-Technician 1 | . . . . . . . . . . 1 Best Kill Streak 1 | . . . . . . . . . . 1 Combat Bots Only . | . . . . . . . . . . . Max Kills in Single Turn 1 | . . . . . . . . . . 1 Gunslinging . | . . . . . . . . . . . Exploded . | . . . . . . . . . . . Melee . | . . . . . . . . . . . Uniques/NPCs Destroyed . | . . . . . . . . . . . Combat | -11 -10 -10 -10 -9 -8 -7 -7 -7 -7 -7 -------- Run | Jun Mat Min Exi Min Mat Fac Low Low Zio Dee Damage Taken 1495 | . 29 400 . 32 79 700 . 152 . 103 Core 964 | . . 154 . 32 78 543 . 124 . 33 Absorbed by Shields . | . . . . . . . . . . . Regen/Repaired (Parts) 1 | . . . . . . . . . 1 . Core Remaining (%) 70 | 100 . . . 25 85 . . . . . Volleys Fired 4 | . . . . . . 4 . . . . Largest 1 | . . . . . . 1 . . . . Hottest 30 | . . . . . . 30 . . . . Shots Fired 4 | . . . . . . 4 . . . . Gun . | . . . . . . . . . . . Cannon . | . . . . . . . . . . . Launcher 4 | . . . . . . 4 . . . . Special . | . . . . . . . . . . . Kinetic . | . . . . . . . . . . . Thermal . | . . . . . . . . . . . Explosive 4 | . . . . . . 4 . . . . Electromagnetic . | . . . . . . . . . . . Robot Hit Streak . | . . . . . . . . . . . Robot Miss Streak . | . . . . . . . . . . . Penetration Max . | . . . . . . . . . . . Secondary Targets . | . . . . . . . . . . . Shots Hit Robots 3 | . . . . . . . . . . 3 Core Hits 2 | . . 2 . . . . . . . . Critical Kills . | . . . . . . . . . . . Critical Parts Destroyed . | . . . . . . . . . . . Critical Strikes . | . . . . . . . . . . . Melee Attacks 22 | . . . . . . . . . 9 13 Impact 19 | . . . . . . . . . 7 12 Slashing 3 | . . . . . . . . . 2 1 Piercing . | . . . . . . . . . . . Sneak Attacks 2 | . . . . . . . . . . 2 Combat Hostiles 1 | . . . . . . . . . . 1 Follow-up Attacks . | . . . . . . . . . . . Damage Inflicted 274 | . . 27 . . 3 . . . . 244 Guns . | . . . . . . . . . . . Cannons . | . . . . . . . . . . . Explosions . | . . . . . . . . . . . Melee 244 | . . . . . . . . . . 244 Ramming 30 | . . 27 . . 3 . . . . . Kinetic . | . . . . . . . . . . . Thermal . | . . . . . . . . . . . Explosive . | . . . . . . . . . . . Electromagnetic . | . . . . . . . . . . . Impact 244 | . . . . . . . . . . 244 Slashing . | . . . . . . . . . . . Piercing . | . . . . . . . . . . . Highest Corruption 2 | . . . . . . 2 2 2 2 . Average Corruption 2 | . . . . . . 2 2 2 2 . Corruption Purged . | . . . . . . . . . . . Corruption Blocked . | . . . . . . . . . . . Effects 5 | . . . . . . 3 1 1 . . Message Errors 1 | . . . . . . 1 . . . . Matter Fused 2 | . . . . . . 1 . 1 . . Heat Flow Errors 1 | . . . . . . 1 . . . . Data Loss (major) 1 | . . . . . . . 1 . . . Overload Shots . | . . . . . . . . . . . Overflow Damage 131 | . . . . . . 29 . . . 102 Projectiles . | . . . . . . . . . . . Explosions 29 | . . . . . . 29 . . . . Melee 102 | . . . . . . . . . . 102 Knockbacks 1 | . . . . . . . . . . 1 Impact 1 | . . . . . . . . . . 1 Kinetic . | . . . . . . . . . . . Secondary . | . . . . . . . . . . . Self-Inflicted Damage 207 | . . 13 . . 1 193 . . . . Shots 3 | . . . . . . 3 . . . . Rammed 6 | . . 5 . . 1 . . . . . Targets Rammed 6 | . . 5 . . 1 . . . . . Kicked . | . . . . . . . . . . . Crushed . | . . . . . . . . . . . Highest Temperature 171 | . . 8 . . . 171 . 2 . . Average Temperature 55 | . . 8 . . . 76 . 2 . . Received Heat Transfer 336 | . . 147 . 18 27 54 . 63 . 27 Siege Activations . | . . . . . . . . . . . Robots Corrupted . | . . . . . . . . . . . Combat Hostiles . | . . . . . . . . . . . Parts Fried . | . . . . . . . . . . . Impact Corruptions 4 | . . . . . . . . . . 4 Robots Melted . | . . . . . . . . . . . Combat Hostiles . | . . . . . . . . . . . Parts Melted . | . . . . . . . . . . . Heat Transferred . | . . . . . . . . . . . Parts Sabotaged . | . . . . . . . . . . . Parts Stolen . | . . . . . . . . . . . Parts Stripped . | . . . . . . . . . . . Power Chain Reactions . | . . . . . . . . . . . Missiles Intercepted . | . . . . . . . . . . . Alert | -11 -10 -10 -10 -9 -8 -7 -7 -7 -7 -7 ------- Run | Jun Mat Min Exi Min Mat Fac Low Low Zio Dee Peak Influence 120 | . 15 120 . . 63 109 . . . . Initial 28 | . . 5 . . 3 28 . . . . Average 47 | . 6 48 . . 19 63 . . . . Maximum Alert Level . | . . . . . . . . . . . Low Security (%) 100 | 100 100 100 . 100 100 100 . . . . Level 1 . | . . . . . . . . . . . Level 2 . | . . . . . . . . . . . Level 3 . | . . . . . . . . . . . Level 4 . | . . . . . . . . . . . Level 5 . | . . . . . . . . . . . High Security . | . . . . . . . . . . . Max Security . | . . . . . . . . . . . Squads Dispatched 2 | . 1 . . . 1 . . . . . Investigation . | . . . . . . . . . . . Extermination . | . . . . . . . . . . . Reinforcement 2 | . 1 . . . 1 . . . . . Assault . | . . . . . . . . . . . Garrison . | . . . . . . . . . . . Intercept . | . . . . . . . . . . . Searches Triggered . | . . . . . . . . . . . Construction Impeded . | . . . . . . . . . . . Haulers Reinforced . | . . . . . . . . . . . Active Scanning Responses . | . . . . . . . . . . . Cargo Convoy Interrupts . | . . . . . . . . . . . Stealth | -11 -10 -10 -10 -9 -8 -7 -7 -7 -7 -7 --------- Run | Jun Mat Min Exi Min Mat Fac Low Low Zio Dee Distress Signals 1 | . . . . . 1 . . . . . Communications Jammed . | . . . . . . . . . . . Distress Signals . | . . . . . . . . . . . Times Spotted 52 | . 6 14 . 3 6 8 1 10 . 4 Peak Tracking Total 10 | . 6 10 . 3 6 5 1 9 . 2 Tactical Retreats 8 | . . 3 . . 2 3 . . . . Traps | -11 -10 -10 -10 -9 -8 -7 -7 -7 -7 -7 ------- Run | Jun Mat Min Exi Min Mat Fac Low Low Zio Dee Traps Triggered 2 | . . . . . . 2 . . . . Indirectly . | . . . . . . . . . . . Trap Hack Attempts . | . . . . . . . . . . . Triggered . | . . . . . . . . . . . Disarmed . | . . . . . . . . . . . Reprogrammed . | . . . . . . . . . . . Reused . | . . . . . . . . . . . Traps Extracted . | . . . . . . . . . . . Installed . | . . . . . . . . . . . Triggered 2 | . . . . 1 . . . 1 . . Machines | -11 -10 -10 -10 -9 -8 -7 -7 -7 -7 -7 ---------- Run | Jun Mat Min Exi Min Mat Fac Low Low Zio Dee Machines Disabled 4 | . . . . . . 3 . . . 1 Max in Single Turn 2 | . . . . . . 2 . . . 1 Machines Repaired . | . . . . . . . . . . . Machines Sabotaged . | . . . . . . . . . . . Overloaded Fab Kills . | . . . . . . . . . . . Hacking | -11 -10 -10 -10 -9 -8 -7 -7 -7 -7 -7 --------- Run | Jun Mat Min Exi Min Mat Fac Low Low Zio Dee Machines Accessed 7 | . . . 1 . . 4 . 2 . . Terminals 4 | . . . . . . 4 . . . . Fabricators . | . . . . . . . . . . . Repair Stations . | . . . . . . . . . . . Recycling Units . | . . . . . . . . . . . Scanalyzers . | . . . . . . . . . . . Garrison Access . | . . . . . . . . . . . Total Hacks 18 | . . . 1 . . 12 . 5 . . Successful 10 | . . . 1 . . 4 . 5 . . Failed 8 | . . . . . . 8 . . . . Catastrophic 1 | . . . . . . 1 . . . . Database Lockouts . | . . . . . . . . . . . Manual 2 | . . . 1 . . 1 . . . . Terminals 12 | . . . . . . 12 . . . . Fabricators . | . . . . . . . . . . . Repair Stations . | . . . . . . . . . . . Recycling Units . | . . . . . . . . . . . Scanalyzers . | . . . . . . . . . . . Garrison Access . | . . . . . . . . . . . Terminal Hacks 9 | . . . 1 . . 3 . 5 . . Record 4 | . . . . . . . . 4 . . Open Door 1 | . . . . . . . . 1 . . Alert Level 1 | . . . . . . 1 . . . . Locate Traps 1 | . . . . . . 1 . . . . Hauler Manifests 1 | . . . . . . 1 . . . . EX-Prototype ID Bank 1 | . . . 1 . . . . . . . Fabricator Hacks . | . . . . . . . . . . . Repair Station Hacks . | . . . . . . . . . . . Recycling Unit Hacks . | . . . . . . . . . . . Scanalyzer . | . . . . . . . . . . . Garrison Access Hacks . | . . . . . . . . . . . Unauthorized Hacks 1 | . . . . . . 1 . . . . Terminals 1 | . . . . . . 1 . . . . Botnet 1 | . . . . . . 1 . . . . Fabricators . | . . . . . . . . . . . Repair Stations . | . . . . . . . . . . . Recycling Units . | . . . . . . . . . . . Scanalyzers . | . . . . . . . . . . . Garrison Access . | . . . . . . . . . . . Data Cores Recovered . | . . . . . . . . . . . Used . | . . . . . . . . . . . Hacking Detections 3 | . . . . . . 3 . . . . Full Trace Events . | . . . . . . . . . . . Feedback Events . | . . . . . . . . . . . Feedback Blocked . | . . . . . . . . . . . Robot Schematics Acquired 1 | . . . . . . . . . 1 . Robots Built . | . . . . . . . . . . . Authchips . | . . . . . . . . . . . Time . | . . . . . . . . . . . Total Robot Build Rating . | . . . . . . . . . . . Part Schematics Acquired 3 | . . . . . . . . . 3 . Parts Built . | . . . . . . . . . . . Authchips . | . . . . . . . . . . . Time . | . . . . . . . . . . . Total Part Build Rating . | . . . . . . . . . . . Parts Repaired . | . . . . . . . . . . . Time . | . . . . . . . . . . . Parts Recycled . | . . . . . . . . . . . Recycled Matter . | . . . . . . . . . . . Retrieved Matter . | . . . . . . . . . . . Retrieved Components . | . . . . . . . . . . . Parts Scanalyzed . | . . . . . . . . . . . Part Schematics Acquired . | . . . . . . . . . . . Parts Damaged . | . . . . . . . . . . . Bothacking | -11 -10 -10 -10 -9 -8 -7 -7 -7 -7 -7 ------------ Run | Jun Mat Min Exi Min Mat Fac Low Low Zio Dee Used RIF Installer . | . . . . . . . . . . . Robots Hacked . | . . . . . . . . . . . Non-combat . | . . . . . . . . . . . Combat . | . . . . . . . . . . . Robot Hacks Applied . | . . . . . . . . . . . Relay Couplers Released . | . . . . . . . . . . . Fabnet Peak Effective % . | . . . . . . . . . . . Robots Rewired . | . . . . . . . . . . . Allies Hacked . | . . . . . . . . . . . Hacks Repelled . | . . . . . . . . . . . Allies | -11 -10 -10 -10 -9 -8 -7 -7 -7 -7 -7 -------- Run | Jun Mat Min Exi Min Mat Fac Low Low Zio Dee Total Allies 3 | . . . . . . . . . 2 1 Largest Group 3 | . . . . . . . . . 2 3 Highest-Rated Group 175 | . . . . . . . . . 56 175 Highest-Rated Ally 119 | . . . . . . . . . 31 119 Total Orders . | . . . . . . . . . . . Ally Attacks 16 | . . . . . . . . . . 16 Total Damage 531 | . . . . . . . . . . 531 Kills 4 | . . . . . . . . . . 4 Allies Corrupted . | . . . . . . . . . . . Allies Melted . | . . . . . . . . . . . Intel | -11 -10 -10 -10 -9 -8 -7 -7 -7 -7 -7 ------- Run | Jun Mat Min Exi Min Mat Fac Low Low Zio Dee Robot Analysis Total . | . . . . . . . . . . . Derelict Logs Recovered 2 | . . . . . . . . 1 1 . Drone Launches . | . . . . . . . . . . . Drone Recoveries . | . . . . . . . . . . . Exploration | -11 -10 -10 -10 -9 -8 -7 -7 -7 -7 -7 ------------- Run | Jun Mat Min Exi Min Mat Fac Low Low Zio Dee Turns Passed 1457 | 24 30 92 107 41 101 472 60 134 288 108 Spaces Moved 3057 | 35 59 174 212 62 180 855 173 390 703 214 Core 1080 | 32 59 174 212 62 180 361 . . . . Treads 3 | 3 . . . . . . . . . . Legs . | . . . . . . . . . . . Wheels . | . . . . . . . . . . . Hover . | . . . . . . . . . . . Flight 1974 | . . . . . . 494 173 390 703 214 Fastest Speed 34 | 50 50 50 50 50 50 34 34 34 34 34 Average Speed 40 | 59 50 50 50 50 50 42 34 34 34 34 Slowest Speed 160 | 160 50 50 50 50 50 50 34 34 34 34 Overloaded Moves . | . . . . . . . . . . . Propulsion Burnouts . | . . . . . . . . . . . Robots Hopped 3 | . . . . . . 2 1 . . . Cave-ins Triggered 1 | . . . . . . 1 . . . . Exploration Rate (%) 40 | 3 22 45 62 22 25 30 44 66 79 47 Regions Visited 10 Branch Regions 7 Pre-discovered Areas 1 | . . . . . . . . . 1 . Known Exits Taken 1 | . . . . . . . . . 1 . Unknown Exits Taken 9 | 1 1 1 1 1 1 1 1 1 . . Scrap Searched 11 | . . . . . . . 1 5 5 . Spaces Dug 89 | . . . . . . 86 . . 3 . Terrain Destroyed 89 | . . . . . . 86 . . 3 . Melee 3 | . . . . . . . . . 3 . Projectile . | . . . . . . . . . . . AOE 86 | . . . . . . 86 . . . . Terrain Rammed . | . . . . . . . . . . . Walls Destroyed . | . . . . . . . . . . . Machines Disabled . | . . . . . . . . . . . Actions | -11 -10 -10 -10 -9 -8 -7 -7 -7 -7 -7 --------- Run | Jun Mat Min Exi Min Mat Fac Low Low Zio Dee Total 3242 | 36 58 178 212 71 190 954 172 390 743 238 Wait 120 | . . . . 9 . 71 . . 28 12 Move 3040 | 34 58 173 211 61 179 849 170 389 702 214 Hop 3 | . . . . . . 2 1 . . . Pick Up 8 | . . . 1 1 6 . . . . . Fast Attach 14 | 2 . . . . 1 7 1 1 2 . Attach 2 | . . . . . 1 1 . . . . Detach 1 | . . . . . . 1 . . . . Swap 2 | . . . . . . . . . 2 . Drop 4 | . . . . . 2 . . . 2 . Fire 4 | . . . . . . 4 . . . . Melee 19 | . . . . . . . . . 7 12 Ram 6 | . . 5 . . 1 . . . . . Kick . | . . . . . . . . . . . Crush . | . . . . . . . . . . . Escape Stasis 19 | . . . . . . 19 . . . . Rewire . | . . . . . . . . . . . Trap . | . . . . . . . . . . . Miscellaneous . | . . . . . . . . . . . Route ------- -11/Junkyard -10/Materials -10/Mines (discovered 2 exits: [*Mat] / *Exi) -10/Exiles -9/Mines -8/Materials -7/Factory -7/Lower Caves -7/Lower Caves -7/Zion -7/Deep Caves History --------- Turn | Location | Event 2 | -11/Junkyard | Met Revision 17 2 | -11/Junkyard | Discovered new exit (range 16) 25 | -11/Junkyard | Entered Materials 47 | -10/Materials | Discovered new exit (range 16) 55 | -10/Materials | Entered Mines 120 | -10/Mines | Discovered new exit (range 9) 138 | -10/Mines | Core integrity fell below 50% 145 | -10/Mines | Deemed a non-threat by the Exiles lab entrance 145 | -10/Mines | Discovered new exit (range 5) 147 | -10/Mines | Entered Exiles 160 | -10/Exiles | Met 8R-AWN 168 | -10/Exiles | Met EX-HEX 184 | -10/Exiles | Met EX-BIN 191 | -10/Exiles | Aligned with FarCom system 191 | -10/Exiles | Given EX-Vault access code 203 | -10/Exiles | Opened EX-Vault 206 | -10/Exiles | Found Field Lobotomy Kit 218 | -10/Exiles | Warned to stay clear of 0b10 Research branches 232 | -10/Exiles | Met EX-DEC 250 | -10/Exiles | Discovered new exit (range 11) 254 | -10/Exiles | Left Exiles lab with Field Lobotomy Kit 254 | -10/Exiles | Entered Mines 265 | -9/Mines | A weapon hastily lodged in a ceiling crevice suddenly fell to the ground 281 | -9/Mines | Discovered new exit (range 11) 295 | -9/Mines | Entered Materials 295 | -8/Materials | Evolved 4 slots: Power x1, Propulsion x3 338 | -8/Materials | Build established: Mutant 390 | -8/Materials | Discovered new exit (range 13) 396 | -8/Materials | Entered Factory 396 | -7/Factory | Evolved 2 slots: Propulsion x1, Utility x1 577 | -7/Factory | Crushed by falling debris 697 | -7/Factory | Build established: Hacker-Mutant 807 | -7/Factory | Core integrity fell below 50% 844 | -7/Factory | Discovered new exit (range 15) 868 | -7/Factory | Entered Lower Caves 894 | -7/Lower Caves | Encountered a Warlord checkpoint 925 | -7/Lower Caves | Discovered new exit (range 12) 928 | -7/Lower Caves | Entered another Lower Caves area 930 | -7/Lower Caves | Core integrity fell below 20% 940 | -7/Lower Caves | Learned Factory security intel 953 | -7/Lower Caves | Encountered a Warlord checkpoint 1052 | -7/Lower Caves | Learned Factory stockpile data 1060 | -7/Lower Caves | Discovered new exit (range 10) 1062 | -7/Lower Caves | Entered Zion 1083 | -7/Zion | Gained Derelict followers 1091 | -7/Zion | Received a visual enhancement algorithm 1104 | -7/Zion | System corruption cleaned by Quarantine Array 1111 | -7/Zion | Learned location of Quarantine (-2) 1159 | -7/Zion | Identified exit to Deep Caves 1174 | -7/Zion | Given the Hacking Drone Bay 1195 | -7/Zion | Rebuked by Imprinter 1330 | -7/Zion | Saw the warning signs outside the Deep Caves entrance 1350 | -7/Zion | Entered Deep Caves 1350 | -7/Deep Caves | Accompanied by 2 allies 1351 | -7/Deep Caves | Met 5H-AD0 1398 | -7/Deep Caves | Z-Facility disabled 1453 | -7/Deep Caves | Attacked by Z-Imprinter 1458 | -7/Deep Caves | Destroyed by Z-Imprinter with Zionite Laser-M Last Messages --------------- 01353_ DK-LS5(l): "Anyone have a map of this place? Because I'm almost certain we're headed in a bad direction." 01366_ as-10668 destroyed. 01377_ as-08940 destroyed. 01378_ as-56843 destroyed. 01392_ NEW_ZION: Z-Facility proximity alert. 01395_ Sneak attack on 1A-9W5(o). 01395_ Destroyed Mak. Hacking Suite. 01395_ Destroyed Hover Unit. 01395_ Destroyed Datajack. 01395_ Destroyed Hover Unit. 01395_ 1A-9W5(o) system corrupted by crushing effect. 01395_ 1A-9W5(o) destroyed. 01398_ Z-Facility disabled. Z-Imprinter: GET AWAY FROM HERE! I've worked too hard for our future just to have you ruin everything! 01455_ Sneak attack on Z-Imprinter. 01455_ Z-Imprinter knocked back. 01455_ Backup Power III destroyed. 01455_ Reaction Control System destroyed. Map ----- +----------------------------------------------------+ | | | | | | | | | | | | | | | | | | | | | | | | | | | | | | | ?????????????????????????????????????????????????? | | ?????????????????????????????????????????????????? | | ?????????????## ?????????????##??????????????????? | | ?????????????# ???????????#;#??????????????????? | | ?????????????# ??????#### ##?????????????????? | | ??????????????# #??#### ##????????????????? | | ????????????????# ### #????????????????? | | ?????????????????# #????????????????? | | ?????????????????# #??????????###???? | | ????????????????## ### #?????????# #???? | | ??????????####### @##??? #????????? #???? | | ????????? I ##????#????????? #???? | | ????????? #???#####?????# #???## | | ??????????## ##??# ###### #??? | | ???????????## #?## ## #???? | | ????????????## ### #????# | | ?????????????# ## ## #????? | | ????????????# #?## ### ##???# | | ???????????# #???## ## #???# | | ??????????? #?????# #???? | | ??????????? ?????# ## #?### | | ??????????? ? ######## ### | | ???????????? #?????# ### | | ???????????? #### #????## #?# | | ????????????????## #???## #?# | | ?????????????????## ### ##???# #?## | | ??????????????????######??## #????# ##??### | | ???????????????????????????## ##????# ###?????# | | ????????????????????????????####?????# #???????# | | ??????????????????????????????????#### ##??????? | | ?????????????????????????????????## #????### | | ?????????????????????????????????# #???## | | ?????????????????????????????????# #???# | | ????????????????????????????????## #???# | | ??????????????????????????????### ### #??## | +----------------------------------------------------+ Best States ------------- Heat Dissipation 34 Energy Generation 11 Energy Capacity 100 Matter Stores 300 Matter Capacity 300 Sight Range 16 Terrain Scan Density 210 Evasion (%) 71 Recoil Reduction 2 Offensive Hacking 11 Defensive Hacking 20 Item Schematics ----------------- Flak Gun | -7/Zion | Archive Lyr. Medium Armor Plating | -7/Zion | Archive Matter Filter | -7/Zion | Archive Robot Schematics ------------------ K-01 Serf | -7/Zion | Archive Fabricated ------------ Nothing Alien Tech Used ----------------- None Achievements -------------- None Challenges ------------ None Game ------ Seed ShadingFluxRail Manual? 0 Play Time 00:19:28 Cumulative 150.2 hours Start 2023.04.26 @ 20:29:35 End 2023.04.26 @ 20:47:28 Sessions 1 Manual Loads 0 Difficulty Rogue Special Mode None Game No. 436 Rogue 436 Adventurer 0 Explorer 0 Win Type - Total 7 Types 6/0/0/1/0/0/0/0/0 Lore% 65 Gallery% 71 Achievement% 61 Wizard Run 0 Options --------- ASCII 0 Keyboard 0 Movement Numpad Keybinds 0 Fullscreen 1 Font 16/SmallcapsGlow Map View 75x55 Tactical HUD 1 Map Filters NONE Filters NONE Steam 1 RUN: a953bd1d-8fe2-4f19-a7d6-b6951564f9dc